[Event "Titled Tuesday Blitz January 04 2022"]
[White "Sjugirov, Sanan"]
[Black "Grandelius, Nils"]
[WhiteFideId "4189302"]
[BlackFideId "1710400"]
[WhiteElo "2602"]
[BlackElo "2617"]
[Result "1/2-1/2"]
[Round "11"]
[TimeControl "180+1"]
[Date "2022.01.04"]
[WhiteClock "0:00:06"]
[BlackClock "0:00:31"]

1. e4 {[%clk 0:03:00]}  c6 {[%clk 0:02:58]} 2. Nf3 {[%clk 0:02:57]}  d5 {[%clk 0:02:59]} 3. d3 {[%clk 0:02:58]}  g6 {[%clk 0:02:59]} 4. e5 {[%clk 0:02:55]}  Bg7 {[%clk 0:02:53]} 5. d4 {[%clk 0:02:55]}  f6 {[%clk 0:02:53]} 6. exf6 {[%clk 0:02:50]}  Nxf6 {[%clk 0:02:54]} 7. Be2 {[%clk 0:02:43]}  O-O {[%clk 0:02:53]} 8. O-O {[%clk 0:02:43]}  Bg4 {[%clk 0:02:53]} 9. Nbd2 {[%clk 0:02:42]}  Qd6 {[%clk 0:02:50]} 10. Ne5 {[%clk 0:02:31]}  Bxe2 {[%clk 0:02:49]} 11. Qxe2 {[%clk 0:02:31]}  Nbd7 {[%clk 0:02:45]} 12. f4 {[%clk 0:02:27]}  c5 {[%clk 0:02:37]} 13. c3 {[%clk 0:01:47]}  cxd4 {[%clk 0:02:36]} 14. cxd4 {[%clk 0:01:48]}  Rac8 {[%clk 0:02:36]} 15. Ndf3 {[%clk 0:01:46]}  Ne4 {[%clk 0:02:36]} 16. Be3 {[%clk 0:01:44]}  Nxe5 {[%clk 0:02:32]} 17. dxe5 {[%clk 0:01:43]}  Qd7 {[%clk 0:02:14]} 18. Rac1 {[%clk 0:01:35]}  e6 {[%clk 0:02:10]} 19. Qd3 {[%clk 0:01:32]}  Rxc1 {[%clk 0:02:02]} 20. Rxc1 {[%clk 0:01:31]}  Rc8 {[%clk 0:02:02]} 21. Rxc8+ {[%clk 0:01:25]}  Qxc8 {[%clk 0:02:03]} 22. h3 {[%clk 0:01:22]}  Bf8 {[%clk 0:01:58]} 23. b3 {[%clk 0:01:04]}  Bc5 {[%clk 0:01:49]} 24. Kh2 {[%clk 0:01:01]}  Kf7 {[%clk 0:01:34]} 25. Qc2 {[%clk 0:00:56]}  Qc6 {[%clk 0:01:21]} 26. Bxc5 {[%clk 0:00:42]}  Qxc5 {[%clk 0:01:21]} 27. Ng5+ {[%clk 0:00:42]}  Kg8 {[%clk 0:01:09]} 28. Qxc5 {[%clk 0:00:39]}  Nxc5 {[%clk 0:01:10]} 29. g3 {[%clk 0:00:33]}  h6 {[%clk 0:01:09]} 30. Nf3 {[%clk 0:00:33]}  Kf7 {[%clk 0:01:08]} 31. Kg2 {[%clk 0:00:33]}  Nd3 {[%clk 0:01:07]} 32. Nd4 {[%clk 0:00:28]}  a6 {[%clk 0:00:58]} 33. Kf3 {[%clk 0:00:28]}  Nb4 {[%clk 0:00:56]} 34. a3 {[%clk 0:00:24]}  Nc6 {[%clk 0:00:56]} 35. Nxc6 {[%clk 0:00:10]}  bxc6 {[%clk 0:00:57]} 36. b4 {[%clk 0:00:11]}  g5 {[%clk 0:00:50]} 37. fxg5 {[%clk 0:00:10]}  hxg5 {[%clk 0:00:50]} 38. Ke3 {[%clk 0:00:10]}  Kg6 {[%clk 0:00:51]} 39. g4 {[%clk 0:00:09]}  Kf7 {[%clk 0:00:49]} 40. Kd4 {[%clk 0:00:09]}  Ke7 {[%clk 0:00:48]} 41. Kc5 {[%clk 0:00:09]}  Kd7 {[%clk 0:00:45]} 42. a4 {[%clk 0:00:06]}  Kc7 {[%clk 0:00:42]} 43. a5 {[%clk 0:00:04]}  Kd7 {[%clk 0:00:41]} 44. Kd4 {[%clk 0:00:04]}  Kd8 {[%clk 0:00:37]} 45. Kc5 {[%clk 0:00:04]}  Kc7 {[%clk 0:00:35]} 46. Kd4 {[%clk 0:00:05]}  Kd7 {[%clk 0:00:29]} 47. Kc5 {[%clk 0:00:05]}  Kc7 {[%clk 0:00:30]} 48. Kd4 {[%clk 0:00:05]}  Kd7 {[%clk 0:00:30]} 49. Kc5 {[%clk 0:00:06]}  Kc7 {[%clk 0:00:31]} 1/2-1/2


[Site "https://www.chess.com"]

[Event "Titled Tuesday Blitz January 04 2022"]
[White "Timofeev, Artyom"]
[Black "Supatashvili, Khvicha"]
[WhiteFideId "4140419"]
[BlackFideId "13600664"]
[WhiteElo "2583"]
[BlackElo "2710"]
[Result "1-0"]
[Round "11"]
[TimeControl "180+1"]
[Date "2022.01.04"]
[WhiteClock "0:00:37"]
[BlackClock "0:00:19"]

1. d4 {[%clk 0:03:00]}  Nf6 {[%clk 0:02:59]} 2. Nf3 {[%clk 0:03:00]}  e6 {[%clk 0:02:56]} 3. Bg5 {[%clk 0:02:59]}  c5 {[%clk 0:02:54]} 4. e3 {[%clk 0:02:58]}  Be7 {[%clk 0:02:53]} 5. Nbd2 {[%clk 0:02:57]}  cxd4 {[%clk 0:02:52]} 6. exd4 {[%clk 0:02:57]}  b6 {[%clk 0:02:52]} 7. Bd3 {[%clk 0:02:56]}  O-O {[%clk 0:02:51]} 8. Qe2 {[%clk 0:02:55]}  Bb7 {[%clk 0:02:49]} 9. c3 {[%clk 0:02:54]}  Nc6 {[%clk 0:02:45]} 10. O-O {[%clk 0:02:44]}  Nd5 {[%clk 0:02:43]} 11. Bxe7 {[%clk 0:02:43]}  Ncxe7 {[%clk 0:02:41]} 12. g3 {[%clk 0:02:43]}  Nf6 {[%clk 0:02:38]} 13. Rfe1 {[%clk 0:02:41]}  Rc8 {[%clk 0:02:33]} 14. a4 {[%clk 0:02:40]}  a5 {[%clk 0:02:27]} 15. Ne5 {[%clk 0:02:34]}  d6 {[%clk 0:02:25]} 16. Nec4 {[%clk 0:02:33]}  Ng6 {[%clk 0:02:10]} 17. Na3 {[%clk 0:02:27]}  Re8 {[%clk 0:02:09]} 18. Nb5 {[%clk 0:02:08]}  Re7 {[%clk 0:01:51]} 19. Rad1 {[%clk 0:02:05]}  Bc6 {[%clk 0:01:45]} 20. h4 {[%clk 0:01:58]}  d5 {[%clk 0:01:37]} 21. h5 {[%clk 0:01:57]}  Nf8 {[%clk 0:01:37]} 22. h6 {[%clk 0:01:51]}  g6 {[%clk 0:01:36]} 23. Kg2 {[%clk 0:01:34]}  Bxb5 {[%clk 0:01:30]} 24. Bxb5 {[%clk 0:01:34]}  Ne8 {[%clk 0:01:26]} 25. Nf3 {[%clk 0:01:26]}  Qc7 {[%clk 0:01:22]} 26. Ne5 {[%clk 0:01:23]}  Nd6 {[%clk 0:01:20]} 27. Bd3 {[%clk 0:01:23]}  f6 {[%clk 0:01:14]} 28. Ng4 {[%clk 0:01:20]}  Rf7 {[%clk 0:01:14]} 29. Qf3 {[%clk 0:01:16]}  Qd8 {[%clk 0:01:03]} 30. Re2 {[%clk 0:01:16]}  Ne4 {[%clk 0:00:41]} 31. Rde1 {[%clk 0:01:06]}  f5 {[%clk 0:00:39]} 32. Ne5 {[%clk 0:01:05]}  Rf6 {[%clk 0:00:27]} 33. Qe3 {[%clk 0:01:02]}  Nd7 {[%clk 0:00:23]} 34. Bb5 {[%clk 0:00:43]}  Nxe5 {[%clk 0:00:21]} 35. dxe5 {[%clk 0:00:43]}  Rf7 {[%clk 0:00:21]} 36. Qf4 {[%clk 0:00:39]}  Qg5 {[%clk 0:00:19]} 37. Rxe4 {[%clk 0:00:37]} 1-0


[Site "https://www.chess.com"]

[Event "Titled Tuesday Blitz January 04 2022"]
[White "Zhigalko, Sergei"]
[Black "Tanenbaum, Zachary"]
[WhiteFideId "13502956"]
[BlackFideId "2060850"]
[WhiteElo "2662"]
[BlackElo "2168"]
[Result "0-1"]
[Round "11"]
[TimeControl "180+1"]
[Date "2022.01.04"]
[WhiteClock "0:00:01"]
[BlackClock "0:00:25"]

1. e4 {[%clk 0:03:00]}  e5 {[%clk 0:03:00]} 2. Nf3 {[%clk 0:03:01]}  Nc6 {[%clk 0:03:00]} 3. Bc4 {[%clk 0:03:01]}  Nf6 {[%clk 0:03:01]} 4. d3 {[%clk 0:03:01]}  Be7 {[%clk 0:03:01]} 5. O-O {[%clk 0:03:01]}  O-O {[%clk 0:03:02]} 6. Nbd2 {[%clk 0:03:01]}  d6 {[%clk 0:02:58]} 7. c3 {[%clk 0:03:01]}  Na5 {[%clk 0:02:58]} 8. Bb5 {[%clk 0:03:01]}  a6 {[%clk 0:02:58]} 9. Ba4 {[%clk 0:03:02]}  b5 {[%clk 0:02:58]} 10. Bc2 {[%clk 0:03:02]}  c5 {[%clk 0:02:58]} 11. Re1 {[%clk 0:03:02]}  Nc6 {[%clk 0:02:54]} 12. Nf1 {[%clk 0:03:02]}  h6 {[%clk 0:02:54]} 13. Ng3 {[%clk 0:03:01]}  Be6 {[%clk 0:02:54]} 14. Bb3 {[%clk 0:02:37]}  Nh7 {[%clk 0:02:47]} 15. Nf5 {[%clk 0:02:19]}  Bxf5 {[%clk 0:02:40]} 16. exf5 {[%clk 0:02:19]}  Ng5 {[%clk 0:02:40]} 17. Bd5 {[%clk 0:02:06]}  Rc8 {[%clk 0:02:40]} 18. h4 {[%clk 0:02:02]}  Nh7 {[%clk 0:02:26]} 19. a4 {[%clk 0:01:55]}  Bxh4 {[%clk 0:02:09]} 20. axb5 {[%clk 0:01:55]}  axb5 {[%clk 0:02:10]} 21. Ra6 {[%clk 0:01:55]}  Nb8 {[%clk 0:02:10]} 22. Ra7 {[%clk 0:01:51]}  Nf6 {[%clk 0:02:03]} 23. Ba2 {[%clk 0:01:26]}  Ng4 {[%clk 0:02:02]} 24. Re2 {[%clk 0:01:16]}  c4 {[%clk 0:02:02]} 25. Rb7 {[%clk 0:01:10]}  d5 {[%clk 0:01:39]} 26. Nxe5 {[%clk 0:00:51]}  Bxf2+ {[%clk 0:01:39]} 27. Rxf2 {[%clk 0:00:50]}  Nxe5 {[%clk 0:01:39]} 28. f6 {[%clk 0:00:49]}  Nxd3 {[%clk 0:01:18]} 29. fxg7 {[%clk 0:00:49]}  Re8 {[%clk 0:01:04]} 30. Qh5 {[%clk 0:00:50]}  Re1+ {[%clk 0:00:34]} 31. Kh2 {[%clk 0:00:47]}  Qd6+ {[%clk 0:00:32]} 32. Bf4 {[%clk 0:00:30]}  Rh1+ {[%clk 0:00:29]} 33. Kxh1 {[%clk 0:00:06]}  Nxf2+ {[%clk 0:00:29]} 34. Kg1 {[%clk 0:00:05]}  Qxf4 {[%clk 0:00:29]} 35. Qxd5 {[%clk 0:00:05]}  Ng4 {[%clk 0:00:25]} 36. Qd4 {[%clk 0:00:01]}  Qc1+ {[%clk 0:00:25]} 0-1


[Site "https://www.chess.com"]

[Event "Titled Tuesday Blitz January 04 2022"]
[White "Zverev, Lev"]
[Black "Donchenko, Alexander"]
[WhiteFideId "24250775"]
[BlackFideId "24603295"]
[WhiteElo "2156"]
[BlackElo "2539"]
[Result "0-1"]
[Round "11"]
[TimeControl "180+1"]
[Date "2022.01.04"]
[WhiteClock "0:01:53"]
[BlackClock "0:02:16"]

1. e4 {[%clk 0:03:00]}  c6 {[%clk 0:03:00]} 2. d4 {[%clk 0:03:00]}  d5 {[%clk 0:03:01]} 3. e5 {[%clk 0:03:01]}  Bf5 {[%clk 0:03:01]} 4. Nf3 {[%clk 0:03:01]}  e6 {[%clk 0:03:01]} 5. Be2 {[%clk 0:03:01]}  Ne7 {[%clk 0:03:02]} 6. O-O {[%clk 0:03:01]}  h6 {[%clk 0:03:02]} 7. Nbd2 {[%clk 0:02:57]}  Nd7 {[%clk 0:03:03]} 8. Nb3 {[%clk 0:02:55]}  g5 {[%clk 0:03:03]} 9. a4 {[%clk 0:02:54]}  Qc7 {[%clk 0:03:03]} 10. a5 {[%clk 0:02:53]}  a6 {[%clk 0:03:03]} 11. Bd2 {[%clk 0:02:53]}  Bg7 {[%clk 0:02:54]} 12. Bb4 {[%clk 0:02:51]}  Ng6 {[%clk 0:02:54]} 13. Bd6 {[%clk 0:02:50]}  Qd8 {[%clk 0:02:53]} 14. Nfd2 {[%clk 0:02:45]}  Nf4 {[%clk 0:02:52]} 15. Bg4 {[%clk 0:02:36]}  Bg6 {[%clk 0:02:50]} 16. g3 {[%clk 0:02:35]}  h5 {[%clk 0:02:50]} 17. gxf4 {[%clk 0:02:19]}  hxg4 {[%clk 0:02:50]} 18. Qxg4 {[%clk 0:02:20]}  gxf4 {[%clk 0:02:47]} 19. Qxf4 {[%clk 0:02:15]}  Bh6 {[%clk 0:02:45]} 20. Qf3 {[%clk 0:02:09]}  Bxd2 {[%clk 0:02:41]} 21. Nxd2 {[%clk 0:02:09]}  Qg5+ {[%clk 0:02:41]} 22. Qg3 {[%clk 0:02:02]}  Qxd2 {[%clk 0:02:41]} 23. f4 {[%clk 0:02:00]}  Qxd4+ {[%clk 0:02:35]} 24. Kg2 {[%clk 0:01:57]}  Be4+ {[%clk 0:02:34]} 25. Rf3 {[%clk 0:01:57]}  Bxf3+ {[%clk 0:02:30]} 26. Kxf3 {[%clk 0:01:58]}  Qe4+ {[%clk 0:02:26]} 27. Kf2 {[%clk 0:01:57]}  Qxc2+ {[%clk 0:02:26]} 28. Kg1 {[%clk 0:01:57]}  O-O-O {[%clk 0:02:22]} 29. Kh1 {[%clk 0:01:54]}  Rdg8 {[%clk 0:02:19]} 30. Qxg8+ {[%clk 0:01:53]}  Rxg8 {[%clk 0:02:19]} 31. Rg1 {[%clk 0:01:53]}  Rxg1+ {[%clk 0:02:16]} 0-1